[Event "Titled Tuesday Blitz August 16 Early 2022"]
[White "Kaasen, Tor Fredrik"]
[Black "Popilski, Gil"]
[WhiteFideId "1516647"]
[BlackFideId "2809060"]
[WhiteElo "2335"]
[BlackElo "2537"]
[Result "0-1"]
[Round "02"]
[TimeControl "180+1"]
[Date "2022.08.16"]
[WhiteClock "0:00:06"]
[BlackClock "0:00:02"]

1. d4 {[%clk 0:03:00]}  Nf6 {[%clk 0:02:58]} 2. c4 {[%clk 0:03:01]}  e6 {[%clk 0:02:47]} 3. Nc3 {[%clk 0:03:00]}  Bb4 {[%clk 0:02:45]} 4. f3 {[%clk 0:03:01]}  d5 {[%clk 0:02:42]} 5. a3 {[%clk 0:03:01]}  Be7 {[%clk 0:02:35]} 6. e4 {[%clk 0:03:01]}  dxe4 {[%clk 0:02:35]} 7. fxe4 {[%clk 0:03:01]}  c5 {[%clk 0:02:35]} 8. d5 {[%clk 0:02:58]}  exd5 {[%clk 0:02:34]} 9. exd5 {[%clk 0:02:58]}  O-O {[%clk 0:02:33]} 10. Nf3 {[%clk 0:02:57]}  Bg4 {[%clk 0:02:32]} 11. Be2 {[%clk 0:02:52]}  a6 {[%clk 0:02:27]} 12. O-O {[%clk 0:02:52]}  Bxf3 {[%clk 0:02:23]} 13. Bxf3 {[%clk 0:02:52]}  Bd6 {[%clk 0:02:23]} 14. Kh1 {[%clk 0:02:24]}  Nbd7 {[%clk 0:02:14]} 15. Bg5 {[%clk 0:02:23]}  Qc7 {[%clk 0:02:13]} 16. g3 {[%clk 0:02:12]}  Rae8 {[%clk 0:02:10]} 17. Qd2 {[%clk 0:01:58]}  Be5 {[%clk 0:02:01]} 18. Rac1 {[%clk 0:01:50]}  h6 {[%clk 0:01:55]} 19. Be3 {[%clk 0:01:50]}  Bd6 {[%clk 0:01:55]} 20. Bg1 {[%clk 0:01:44]}  Ne5 {[%clk 0:01:47]} 21. Be2 {[%clk 0:01:41]}  Qd7 {[%clk 0:01:41]} 22. Rxf6 {[%clk 0:01:40]}  gxf6 {[%clk 0:01:40]} 23. Qxh6 {[%clk 0:01:34]}  f5 {[%clk 0:01:34]} 24. Rf1 {[%clk 0:01:26]}  f6 {[%clk 0:01:11]} 25. Qh3 {[%clk 0:01:00]}  Ng4 {[%clk 0:01:07]} 26. Rxf5 {[%clk 0:00:48]}  Qxf5 {[%clk 0:01:05]} 27. Bxg4 {[%clk 0:00:49]}  Qg6 {[%clk 0:01:01]} 28. Bf5 {[%clk 0:00:45]}  Qf7 {[%clk 0:00:52]} 29. Be6 {[%clk 0:00:36]}  Rxe6 {[%clk 0:00:51]} 30. Qg4+ {[%clk 0:00:35]}  Kh8 {[%clk 0:00:49]} 31. dxe6 {[%clk 0:00:36]}  Qh7 {[%clk 0:00:42]} 32. Nd5 {[%clk 0:00:31]}  Rg8 {[%clk 0:00:29]} 33. Qf3 {[%clk 0:00:31]}  Rxg3 {[%clk 0:00:12]} 34. Qxf6+ {[%clk 0:00:23]}  Rg7 {[%clk 0:00:11]} 35. Qd8+ {[%clk 0:00:17]}  Rg8 {[%clk 0:00:11]} 36. Qf6+ {[%clk 0:00:16]}  Rg7 {[%clk 0:00:10]} 37. Qf3 {[%clk 0:00:15]}  Qg6 {[%clk 0:00:05]} 38. Qh3+ {[%clk 0:00:08]}  Rh7 {[%clk 0:00:03]} 39. Qf3 {[%clk 0:00:07]}  Rg7 {[%clk 0:00:02]} 40. Qh3+ {[%clk 0:00:07]}  Kg8 {[%clk 0:00:02]} 41. Qf1 {[%clk 0:00:06]}  Qe4+ {[%clk 0:00:02]} 0-1


[Site "https://www.chess.com"]

[Event "Titled Tuesday Blitz August 16 Early 2022"]
[White "Karimov, Alisher"]
[Black "Lagno, Kateryna"]
[WhiteFideId "14700280"]
[BlackFideId "14109336"]
[WhiteElo "2186"]
[BlackElo "2522"]
[Result "0-1"]
[Round "02"]
[TimeControl "180+2"]
[Date "2022.08.18"]
[WhiteClock "0:00:00"]
[BlackClock "0:00:00"]

1. d4 {[%clk 0:00:00]}  Nf6 {[%clk 0:00:00]} 2. c4 {[%clk 0:00:00]}  g6 {[%clk 0:00:00]} 3. Nc3 {[%clk 0:00:00]}  d5 {[%clk 0:00:00]} 4. cxd5 {[%clk 0:00:00]}  Nxd5 {[%clk 0:00:00]} 5. e4 {[%clk 0:00:00]}  Nxc3 {[%clk 0:00:00]} 6. bxc3 {[%clk 0:00:00]}  Bg7 {[%clk 0:00:00]} 7. Be3 {[%clk 0:00:00]}  c5 {[%clk 0:00:00]} 8. Nf3 {[%clk 0:00:00]}  Qa5 {[%clk 0:00:00]} 9. Qd2 {[%clk 0:00:00]}  cxd4 {[%clk 0:00:00]} 10. cxd4 {[%clk 0:00:00]}  Qxd2+ {[%clk 0:00:00]} 11. Kxd2 {[%clk 0:00:00]}  O-O {[%clk 0:00:00]} 12. Rc1 {[%clk 0:00:00]}  Nc6 {[%clk 0:00:00]} 13. Bc4 {[%clk 0:00:00]}  Rd8 {[%clk 0:00:00]} 14. d5 {[%clk 0:00:00]}  Na5 {[%clk 0:00:00]} 15. Bd3 {[%clk 0:00:00]}  e6 {[%clk 0:00:00]} 16. Bg5 {[%clk 0:00:00]}  f6 {[%clk 0:00:00]} 17. Bf4 {[%clk 0:00:00]}  e5 {[%clk 0:00:00]} 18. Be3 {[%clk 0:00:00]}  Bf8 {[%clk 0:00:00]} 19. Ke2 {[%clk 0:00:00]}  Bd7 {[%clk 0:00:00]} 20. h4 {[%clk 0:00:00]}  h6 {[%clk 0:00:00]} 21. Bd2 {[%clk 0:00:00]}  b6 {[%clk 0:00:00]} 22. Rc2 {[%clk 0:00:00]}  Nb7 {[%clk 0:00:00]} 23. Rb1 {[%clk 0:00:00]}  Nc5 {[%clk 0:00:00]} 24. Be3 {[%clk 0:00:00]}  Nxd3 {[%clk 0:00:00]} 25. Kxd3 {[%clk 0:00:00]}  f5 {[%clk 0:00:00]} 26. Nxe5 {[%clk 0:00:00]}  fxe4+ {[%clk 0:00:00]} 27. Ke2 {[%clk 0:00:00]}  Bf5 {[%clk 0:00:00]} 28. g4 {[%clk 0:00:00]}  Bc8 {[%clk 0:00:00]} 29. Rg1 {[%clk 0:00:00]}  Ba6+ {[%clk 0:00:00]} 30. Ke1 {[%clk 0:00:00]}  Rxd5 {[%clk 0:00:00]} 31. Nxg6 {[%clk 0:00:00]}  Bb4+ {[%clk 0:00:00]} 32. Bd2 {[%clk 0:00:00]}  Rad8 {[%clk 0:00:00]} 33. Nf4 {[%clk 0:00:00]}  Bxd2+ {[%clk 0:00:00]} 34. Rxd2 {[%clk 0:00:00]}  Rxd2 {[%clk 0:00:00]} 0-1


[Site "https://www.chess.com"]

[Event "Titled Tuesday Blitz August 16 Early 2022"]
[White "Kononenko, Dmitry"]
[Black "Ozates, Tuna"]
[WhiteFideId "14113538"]
[BlackFideId "6354521"]
[WhiteElo "2129"]
[BlackElo "1887"]
[Result "1-0"]
[Round "02"]
[TimeControl "180+2"]
[Date "2022.08.18"]
[WhiteClock "0:00:00"]
[BlackClock "0:00:00"]

1. e4 {[%clk 0:00:00]}  c5 {[%clk 0:00:00]} 2. Nf3 {[%clk 0:00:00]}  Nc6 {[%clk 0:00:00]} 3. d4 {[%clk 0:00:00]}  cxd4 {[%clk 0:00:00]} 4. Nxd4 {[%clk 0:00:00]}  e5 {[%clk 0:00:00]} 5. Nb5 {[%clk 0:00:00]}  d6 {[%clk 0:00:00]} 6. N1c3 {[%clk 0:00:00]}  a6 {[%clk 0:00:00]} 7. Na3 {[%clk 0:00:00]}  b5 {[%clk 0:00:00]} 8. Nd5 {[%clk 0:00:00]}  Nge7 {[%clk 0:00:00]} 9. Ne3 {[%clk 0:00:00]}  Be6 {[%clk 0:00:00]} 10. c4 {[%clk 0:00:00]}  b4 {[%clk 0:00:00]} 11. Nac2 {[%clk 0:00:00]}  g6 {[%clk 0:00:00]} 12. g3 {[%clk 0:00:00]}  Bg7 {[%clk 0:00:00]} 13. Bg2 {[%clk 0:00:00]}  O-O {[%clk 0:00:00]} 14. O-O {[%clk 0:00:00]}  f5 {[%clk 0:00:00]} 15. exf5 {[%clk 0:00:00]}  gxf5 {[%clk 0:00:00]} 16. Nd5 {[%clk 0:00:00]}  e4 {[%clk 0:00:00]} 17. Nce3 {[%clk 0:00:00]}  Rb8 {[%clk 0:00:00]} 18. Rb1 {[%clk 0:00:00]}  Ng6 {[%clk 0:00:00]} 19. b3 {[%clk 0:00:00]}  f4 {[%clk 0:00:00]} 20. gxf4 {[%clk 0:00:00]}  Nxf4 {[%clk 0:00:00]} 21. Bxe4 {[%clk 0:00:00]}  Nd4 {[%clk 0:00:00]} 22. Bb2 {[%clk 0:00:00]}  Qh4 {[%clk 0:00:00]} 23. Nxf4 {[%clk 0:00:00]}  Qxf4 {[%clk 0:00:00]} 24. Bg2 {[%clk 0:00:00]}  Be5 {[%clk 0:00:00]} 25. Qh5 {[%clk 0:00:00]}  Rf6 {[%clk 0:00:00]} 26. Bxd4 {[%clk 0:00:00]}  Rh6 {[%clk 0:00:00]} 27. Bxe5 {[%clk 0:00:00]}  dxe5 {[%clk 0:00:00]} 28. Qxh6 {[%clk 0:00:00]}  Qxh6 {[%clk 0:00:00]} 29. Rbd1 {[%clk 0:00:00]}  Kf7 {[%clk 0:00:00]} 30. Rd6 {[%clk 0:00:00]}  Rg8 {[%clk 0:00:00]} 31. Kh1 {[%clk 0:00:00]}  Rg5 {[%clk 0:00:00]} 32. Rfd1 {[%clk 0:00:00]}  Rh5 {[%clk 0:00:00]} 33. Kg1 {[%clk 0:00:00]}  Qf4 {[%clk 0:00:00]} 34. Bd5 {[%clk 0:00:00]}  Qxh2+ {[%clk 0:00:00]} 35. Kf1 {[%clk 0:00:00]}  Bxd5 {[%clk 0:00:00]} 36. R6xd5 {[%clk 0:00:00]}  Qh1+ {[%clk 0:00:00]} 37. Ke2 {[%clk 0:00:00]}  Qe4 {[%clk 0:00:00]} 38. Rd7+ {[%clk 0:00:00]}  Kg6 {[%clk 0:00:00]} 39. R1d6+ {[%clk 0:00:00]}  Kg5 {[%clk 0:00:00]} 40. Rg7+ {[%clk 0:00:00]}  Kh4 {[%clk 0:00:00]} 41. Rg4+ {[%clk 0:00:00]}  Qxg4+ {[%clk 0:00:00]} 42. Nxg4 {[%clk 0:00:00]}  Kxg4 {[%clk 0:00:00]} 43. Rxa6 {[%clk 0:00:00]}  Kf4 {[%clk 0:00:00]} 44. Ra4 {[%clk 0:00:00]}  Rg5 {[%clk 0:00:00]} 45. c5 {[%clk 0:00:00]}  h5 {[%clk 0:00:00]} 46. Rxb4+ {[%clk 0:00:00]}  e4 {[%clk 0:00:00]} 47. c6 {[%clk 0:00:00]}  Rc5 {[%clk 0:00:00]} 48. Rc4 {[%clk 0:00:00]} 1-0


[Site "https://www.chess.com"]

[Event "Titled Tuesday Blitz August 16 Early 2022"]
[White "Korsunsky, Yuri"]
[Black "Rustemov, Alexander"]
[WhiteFideId "14102722"]
[BlackFideId "4119002"]
[WhiteElo "2394"]
[BlackElo "2525"]
[Result "0-1"]
[Round "02"]
[TimeControl "180+2"]
[Date "2022.08.18"]
[WhiteClock "0:00:00"]
[BlackClock "0:00:00"]

1. e4 {[%clk 0:00:00]}  e6 {[%clk 0:00:00]} 2. d4 {[%clk 0:00:00]}  d5 {[%clk 0:00:00]} 3. exd5 {[%clk 0:00:00]}  exd5 {[%clk 0:00:00]} 4. Bd3 {[%clk 0:00:00]}  Nc6 {[%clk 0:00:00]} 5. c3 {[%clk 0:00:00]}  Bd6 {[%clk 0:00:00]} 6. h3 {[%clk 0:00:00]}  Qf6 {[%clk 0:00:00]} 7. Qf3 {[%clk 0:00:00]}  Qxf3 {[%clk 0:00:00]} 8. Nxf3 {[%clk 0:00:00]}  Nge7 {[%clk 0:00:00]} 9. O-O {[%clk 0:00:00]}  Bf5 {[%clk 0:00:00]} 10. Bxf5 {[%clk 0:00:00]}  Nxf5 {[%clk 0:00:00]} 11. Re1+ {[%clk 0:00:00]}  Kd7 {[%clk 0:00:00]} 12. Bd2 {[%clk 0:00:00]}  Rhe8 {[%clk 0:00:00]} 13. Na3 {[%clk 0:00:00]}  Bxa3 {[%clk 0:00:00]} 14. bxa3 {[%clk 0:00:00]}  f6 {[%clk 0:00:00]} 15. g4 {[%clk 0:00:00]}  Nd6 {[%clk 0:00:00]} 16. Bf4 {[%clk 0:00:00]}  Nc4 {[%clk 0:00:00]} 17. a4 {[%clk 0:00:00]}  b6 {[%clk 0:00:00]} 18. h4 {[%clk 0:00:00]}  Nb2 {[%clk 0:00:00]} 19. Bd2 {[%clk 0:00:00]}  Nxa4 {[%clk 0:00:00]} 20. g5 {[%clk 0:00:00]}  Nb2 {[%clk 0:00:00]} 21. Kg2 {[%clk 0:00:00]}  Nc4 {[%clk 0:00:00]} 22. Kg3 {[%clk 0:00:00]}  Nd6 {[%clk 0:00:00]} 23. Kg4 {[%clk 0:00:00]}  Ne4 {[%clk 0:00:00]} 24. Rf1 {[%clk 0:00:00]}  f5+ {[%clk 0:00:00]} 25. Kxf5 {[%clk 0:00:00]}  Rf8+ {[%clk 0:00:00]} 26. Kg4 {[%clk 0:00:00]}  Rxf3 {[%clk 0:00:00]} 0-1


[Site "https://www.chess.com"]

[Event "Titled Tuesday Blitz August 16 Early 2022"]
[White "Krsnik Cohar, Ivan Vihor"]
[Black "Mamedov, Rauf"]
[WhiteFideId "14520044"]
[BlackFideId "13401653"]
[WhiteElo "2414"]
[BlackElo "2666"]
[Result "0-1"]
[Round "02"]
[TimeControl "180+1"]
[Date "2022.08.16"]
[WhiteClock "0:00:16"]
[BlackClock "0:01:40"]

1. e4 {[%clk 0:03:00]}  c5 {[%clk 0:02:59]} 2. Ne2 {[%clk 0:03:00]}  d6 {[%clk 0:03:00]} 3. g3 {[%clk 0:03:01]}  h5 {[%clk 0:02:57]} 4. h4 {[%clk 0:03:01]}  Nf6 {[%clk 0:02:57]} 5. Bg2 {[%clk 0:03:01]}  Nc6 {[%clk 0:02:57]} 6. c3 {[%clk 0:03:02]}  Bg4 {[%clk 0:02:51]} 7. f3 {[%clk 0:03:02]}  Bd7 {[%clk 0:02:51]} 8. d4 {[%clk 0:03:03]}  g6 {[%clk 0:02:50]} 9. Be3 {[%clk 0:03:00]}  cxd4 {[%clk 0:02:47]} 10. cxd4 {[%clk 0:03:01]}  Bg7 {[%clk 0:02:47]} 11. Nbc3 {[%clk 0:03:01]}  O-O {[%clk 0:02:48]} 12. Qd2 {[%clk 0:02:59]}  Rc8 {[%clk 0:02:48]} 13. Rc1 {[%clk 0:02:58]}  Qa5 {[%clk 0:02:47]} 14. O-O {[%clk 0:02:56]}  a6 {[%clk 0:02:45]} 15. b3 {[%clk 0:02:51]}  Na7 {[%clk 0:02:39]} 16. Rfd1 {[%clk 0:02:48]}  Nb5 {[%clk 0:02:37]} 17. e5 {[%clk 0:02:37]}  Nh7 {[%clk 0:02:25]} 18. Nd5 {[%clk 0:02:19]}  Qd8 {[%clk 0:02:22]} 19. a4 {[%clk 0:02:13]}  Nc7 {[%clk 0:02:21]} 20. Nb6 {[%clk 0:02:03]}  Rb8 {[%clk 0:02:20]} 21. f4 {[%clk 0:01:58]}  Bg4 {[%clk 0:02:19]} 22. Rc2 {[%clk 0:01:21]}  Ne6 {[%clk 0:02:13]} 23. a5 {[%clk 0:01:15]}  Bh6 {[%clk 0:01:53]} 24. Rdc1 {[%clk 0:01:12]}  Ng7 {[%clk 0:01:44]} 25. Qb4 {[%clk 0:00:28]}  Nf5 {[%clk 0:01:43]} 26. Bf2 {[%clk 0:00:26]}  e6 {[%clk 0:01:44]} 27. Rc8 {[%clk 0:00:23]}  Rxc8 {[%clk 0:01:43]} 28. Rxc8 {[%clk 0:00:24]}  Qe7 {[%clk 0:01:41]} 29. d5 {[%clk 0:00:16]}  Bxe2 {[%clk 0:01:40]} 0-1


[Site "https://www.chess.com"]

[Event "Titled Tuesday Blitz August 16 Early 2022"]
[White "Lazavik, Denis"]
[Black "Khabinets, Ivan"]
[WhiteFideId "13515110"]
[BlackFideId "14115980"]
[WhiteElo "2437"]
[BlackElo "2114"]
[Result "1-0"]
[Round "02"]
[TimeControl "180+1"]
[Date "2022.08.16"]
[WhiteClock "0:00:22"]
[BlackClock "0:00:38"]

1. d4 {[%clk 0:03:00]}  d5 {[%clk 0:02:59]} 2. c4 {[%clk 0:03:01]}  e6 {[%clk 0:03:00]} 3. Nc3 {[%clk 0:02:59]}  a6 {[%clk 0:03:00]} 4. cxd5 {[%clk 0:02:57]}  exd5 {[%clk 0:03:01]} 5. Nf3 {[%clk 0:02:58]}  Nf6 {[%clk 0:03:02]} 6. Bg5 {[%clk 0:02:57]}  Be6 {[%clk 0:03:01]} 7. e3 {[%clk 0:02:58]}  Bd6 {[%clk 0:03:01]} 8. Bd3 {[%clk 0:02:53]}  O-O {[%clk 0:03:01]} 9. h3 {[%clk 0:02:48]}  Nbd7 {[%clk 0:03:00]} 10. Qc2 {[%clk 0:02:48]}  h6 {[%clk 0:03:00]} 11. Bf4 {[%clk 0:02:48]}  Qe7 {[%clk 0:02:53]} 12. O-O {[%clk 0:02:48]}  Rac8 {[%clk 0:02:53]} 13. Rac1 {[%clk 0:02:42]}  c6 {[%clk 0:02:51]} 14. Na4 {[%clk 0:02:37]}  b5 {[%clk 0:02:38]} 15. Bxd6 {[%clk 0:02:34]}  Qxd6 {[%clk 0:02:38]} 16. Nc5 {[%clk 0:02:34]}  Nxc5 {[%clk 0:02:38]} 17. Qxc5 {[%clk 0:02:29]}  Qxc5 {[%clk 0:02:38]} 18. Rxc5 {[%clk 0:02:30]}  Nd7 {[%clk 0:02:38]} 19. Rc2 {[%clk 0:02:29]}  c5 {[%clk 0:02:39]} 20. dxc5 {[%clk 0:02:22]}  Rxc5 {[%clk 0:02:38]} 21. Rfc1 {[%clk 0:02:15]}  Rfc8 {[%clk 0:02:37]} 22. Nd4 {[%clk 0:02:12]}  Rxc2 {[%clk 0:02:36]} 23. Rxc2 {[%clk 0:02:08]}  Rxc2 {[%clk 0:02:36]} 24. Bxc2 {[%clk 0:02:09]}  Kf8 {[%clk 0:02:36]} 25. b4 {[%clk 0:02:05]}  Ne5 {[%clk 0:02:30]} 26. Kf1 {[%clk 0:02:05]}  Ke7 {[%clk 0:02:30]} 27. Ke2 {[%clk 0:02:05]}  Bd7 {[%clk 0:02:29]} 28. Kd2 {[%clk 0:02:03]}  g6 {[%clk 0:02:29]} 29. Kc3 {[%clk 0:02:02]}  Kd6 {[%clk 0:02:29]} 30. Nb3 {[%clk 0:02:01]}  Bc8 {[%clk 0:02:24]} 31. Bd1 {[%clk 0:01:57]}  Nc6 {[%clk 0:02:16]} 32. Be2 {[%clk 0:01:55]}  Ke5 {[%clk 0:02:12]} 33. Bd3 {[%clk 0:01:52]}  h5 {[%clk 0:02:11]} 34. h4 {[%clk 0:01:50]}  Kd6 {[%clk 0:02:03]} 35. Nd4 {[%clk 0:01:46]}  Ne5 {[%clk 0:01:33]} 36. Be2 {[%clk 0:01:45]}  Bg4 {[%clk 0:01:31]} 37. f3 {[%clk 0:01:42]}  Bc8 {[%clk 0:01:29]} 38. Nb3 {[%clk 0:01:40]}  Nc6 {[%clk 0:01:27]} 39. a3 {[%clk 0:01:39]}  Ke5 {[%clk 0:01:26]} 40. g3 {[%clk 0:01:36]}  Kd6 {[%clk 0:01:24]} 41. Nc5 {[%clk 0:01:34]}  Ne5 {[%clk 0:01:21]} 42. a4 {[%clk 0:01:30]}  bxa4 {[%clk 0:01:15]} 43. Nxa4 {[%clk 0:00:58]}  Bd7 {[%clk 0:01:13]} 44. Nc5 {[%clk 0:00:55]}  Bb5 {[%clk 0:01:13]} 45. Bd1 {[%clk 0:00:53]}  Nc4 {[%clk 0:01:02]} 46. Kd4 {[%clk 0:00:52]}  Ne5 {[%clk 0:00:59]} 47. g4 {[%clk 0:00:37]}  Nc6+ {[%clk 0:00:58]} 48. Kc3 {[%clk 0:00:37]}  hxg4 {[%clk 0:00:49]} 49. fxg4 {[%clk 0:00:36]}  Ke5 {[%clk 0:00:50]} 50. h5 {[%clk 0:00:31]}  gxh5 {[%clk 0:00:48]} 51. gxh5 {[%clk 0:00:31]}  Kf5 {[%clk 0:00:47]} 52. Bf3 {[%clk 0:00:28]}  Bc4 {[%clk 0:00:46]} 53. e4+ {[%clk 0:00:27]}  Kf4 {[%clk 0:00:44]} 54. exd5 {[%clk 0:00:25]}  Ne5 {[%clk 0:00:41]} 55. h6 {[%clk 0:00:22]}  Kxf3 {[%clk 0:00:40]} 56. h7 {[%clk 0:00:22]}  Ng6 {[%clk 0:00:41]} 57. Kxc4 {[%clk 0:00:22]}  Ne5+ {[%clk 0:00:38]} 58. Kc3 {[%clk 0:00:22]} 1-0


[Site "https://www.chess.com"]

[Event "Titled Tuesday Blitz August 16 Early 2022"]
[White "Lebedev, Artem S."]
[Black "Navalgund, Niranjan"]
[WhiteFideId "34272747"]
[BlackFideId "5030854"]
[WhiteElo "1699"]
[BlackElo "2294"]
[Result "0-1"]
[Round "02"]
[TimeControl "180+2"]
[Date "2022.08.18"]
[WhiteClock "0:00:00"]
[BlackClock "0:00:00"]

1. e4 {[%clk 0:00:00]}  d5 {[%clk 0:00:00]} 2. exd5 {[%clk 0:00:00]}  c6 {[%clk 0:00:00]} 3. dxc6 {[%clk 0:00:00]}  e5 {[%clk 0:00:00]} 4. Nc3 {[%clk 0:00:00]}  Bc5 {[%clk 0:00:00]} 5. Nf3 {[%clk 0:00:00]}  Nxc6 {[%clk 0:00:00]} 6. Bc4 {[%clk 0:00:00]}  Nf6 {[%clk 0:00:00]} 7. h3 {[%clk 0:00:00]}  e4 {[%clk 0:00:00]} 8. Ng5 {[%clk 0:00:00]}  Bxf2+ {[%clk 0:00:00]} 9. Kf1 {[%clk 0:00:00]}  O-O {[%clk 0:00:00]} 10. Ngxe4 {[%clk 0:00:00]}  Nxe4 {[%clk 0:00:00]} 11. Nxe4 {[%clk 0:00:00]}  Bb6 {[%clk 0:00:00]} 12. d3 {[%clk 0:00:00]}  Ne5 {[%clk 0:00:00]} 13. Bb3 {[%clk 0:00:00]}  Bf5 {[%clk 0:00:00]} 14. Bg5 {[%clk 0:00:00]}  Qd4 {[%clk 0:00:00]} 15. Qe2 {[%clk 0:00:00]}  Rae8 {[%clk 0:00:00]} 16. Re1 {[%clk 0:00:00]}  Kh8 {[%clk 0:00:00]} 17. Be3 {[%clk 0:00:00]}  Qxe3 {[%clk 0:00:00]} 18. Qxe3 {[%clk 0:00:00]}  Bxe3 {[%clk 0:00:00]} 19. Rxe3 {[%clk 0:00:00]}  Nc6 {[%clk 0:00:00]} 20. Kf2 {[%clk 0:00:00]}  Bg6 {[%clk 0:00:00]} 21. Rhe1 {[%clk 0:00:00]}  f5 {[%clk 0:00:00]} 22. Ng5 {[%clk 0:00:00]}  Rxe3 {[%clk 0:00:00]} 23. Rxe3 {[%clk 0:00:00]}  f4 {[%clk 0:00:00]} 24. Re1 {[%clk 0:00:00]}  h6 {[%clk 0:00:00]} 25. Nf3 {[%clk 0:00:00]}  Rf6 {[%clk 0:00:00]} 26. Ne5 {[%clk 0:00:00]}  Nd4 {[%clk 0:00:00]} 27. Nxg6+ {[%clk 0:00:00]}  Rxg6 {[%clk 0:00:00]} 28. Re8+ {[%clk 0:00:00]}  Kh7 {[%clk 0:00:00]} 29. Bg8+ {[%clk 0:00:00]}  Kh8 {[%clk 0:00:00]} 30. Bf7+ {[%clk 0:00:00]}  Kh7 {[%clk 0:00:00]} 31. Bxg6+ {[%clk 0:00:00]}  Kxg6 {[%clk 0:00:00]} 32. c3 {[%clk 0:00:00]}  Nc6 {[%clk 0:00:00]} 33. Re4 {[%clk 0:00:00]}  Kg5 {[%clk 0:00:00]} 34. h4+ {[%clk 0:00:00]}  Kf5 {[%clk 0:00:00]} 35. Re8 {[%clk 0:00:00]}  g5 {[%clk 0:00:00]} 36. hxg5 {[%clk 0:00:00]}  hxg5 {[%clk 0:00:00]} 37. Rf8+ {[%clk 0:00:00]}  Kg6 {[%clk 0:00:00]} 38. Rg8+ {[%clk 0:00:00]}  Kf5 {[%clk 0:00:00]} 39. Rg7 {[%clk 0:00:00]}  b6 {[%clk 0:00:00]} 40. Rc7 {[%clk 0:00:00]}  Ne5 {[%clk 0:00:00]} 41. Rxa7 {[%clk 0:00:00]}  Nxd3+ {[%clk 0:00:00]} 42. Kf1 {[%clk 0:00:00]}  Nxb2 {[%clk 0:00:00]} 43. Ra6 {[%clk 0:00:00]}  b5 {[%clk 0:00:00]} 44. Ra5 {[%clk 0:00:00]}  Nd1 {[%clk 0:00:00]} 45. Rxb5+ {[%clk 0:00:00]}  Kg4 {[%clk 0:00:00]} 46. Rc5 {[%clk 0:00:00]}  Ne3+ {[%clk 0:00:00]} 47. Kf2 {[%clk 0:00:00]}  Kh4 {[%clk 0:00:00]} 48. Re5 {[%clk 0:00:00]}  Ng4+ {[%clk 0:00:00]} 49. Kf3 {[%clk 0:00:00]}  Nxe5+ {[%clk 0:00:00]} 50. Ke4 {[%clk 0:00:00]}  Nc4 {[%clk 0:00:00]} 51. a4 {[%clk 0:00:00]}  Kh5 {[%clk 0:00:00]} 52. Kf3 {[%clk 0:00:00]}  Kg6 {[%clk 0:00:00]} 53. g3 {[%clk 0:00:00]}  Kf5 {[%clk 0:00:00]} 54. gxf4 {[%clk 0:00:00]}  gxf4 {[%clk 0:00:00]} 0-1


[Site "https://www.chess.com"]

[Event "Titled Tuesday Blitz August 16 Early 2022"]
[White "Leiva, Gianmarco"]
[Black "Langner, Ladislav"]
[WhiteFideId "3804399"]
[BlackFideId "300403"]
[WhiteElo "2323"]
[BlackElo "2346"]
[Result "1-0"]
[Round "02"]
[TimeControl "180+2"]
[Date "2022.08.18"]
[WhiteClock "0:00:00"]
[BlackClock "0:00:00"]

1. e4 {[%clk 0:00:00]}  c5 {[%clk 0:00:00]} 2. Nf3 {[%clk 0:00:00]}  e6 {[%clk 0:00:00]} 3. c3 {[%clk 0:00:00]}  Nf6 {[%clk 0:00:00]} 4. Bd3 {[%clk 0:00:00]}  Nc6 {[%clk 0:00:00]} 5. Bc2 {[%clk 0:00:00]}  d5 {[%clk 0:00:00]} 6. e5 {[%clk 0:00:00]}  Nd7 {[%clk 0:00:00]} 7. d4 {[%clk 0:00:00]}  cxd4 {[%clk 0:00:00]} 8. cxd4 {[%clk 0:00:00]}  Nb4 {[%clk 0:00:00]} 9. Bb3 {[%clk 0:00:00]}  b6 {[%clk 0:00:00]} 10. a3 {[%clk 0:00:00]}  Nc6 {[%clk 0:00:00]} 11. O-O {[%clk 0:00:00]}  Ba6 {[%clk 0:00:00]} 12. Re1 {[%clk 0:00:00]}  Na5 {[%clk 0:00:00]} 13. Bc2 {[%clk 0:00:00]}  Rc8 {[%clk 0:00:00]} 14. Nc3 {[%clk 0:00:00]}  Nc4 {[%clk 0:00:00]} 15. Ng5 {[%clk 0:00:00]}  Be7 {[%clk 0:00:00]} 16. Qh5 {[%clk 0:00:00]}  g6 {[%clk 0:00:00]} 17. Qh6 {[%clk 0:00:00]}  Bf8 {[%clk 0:00:00]} 18. Qh3 {[%clk 0:00:00]}  Be7 {[%clk 0:00:00]} 19. Bxg6 {[%clk 0:00:00]}  Bxg5 {[%clk 0:00:00]} 20. Bxf7+ {[%clk 0:00:00]}  Kxf7 {[%clk 0:00:00]} 21. Qh5+ {[%clk 0:00:00]}  Kg8 {[%clk 0:00:00]} 22. Bxg5 {[%clk 0:00:00]}  Qe8 {[%clk 0:00:00]} 23. Qh3 {[%clk 0:00:00]}  Qg6 {[%clk 0:00:00]} 24. Bf6 {[%clk 0:00:00]}  Nxf6 {[%clk 0:00:00]} 25. Qxe6+ {[%clk 0:00:00]}  Qf7 {[%clk 0:00:00]} 26. Qh3 {[%clk 0:00:00]}  Ne4 {[%clk 0:00:00]} 27. Nxe4 {[%clk 0:00:00]}  dxe4 {[%clk 0:00:00]} 28. Rxe4 {[%clk 0:00:00]}  h5 {[%clk 0:00:00]} 29. b3 {[%clk 0:00:00]}  Nd2 {[%clk 0:00:00]} 30. Re3 {[%clk 0:00:00]}  Rh7 {[%clk 0:00:00]} 31. e6 {[%clk 0:00:00]}  Qe7 {[%clk 0:00:00]} 32. d5 {[%clk 0:00:00]}  Rd8 {[%clk 0:00:00]} 33. Re5 {[%clk 0:00:00]}  Rg7 {[%clk 0:00:00]} 34. Kh1 {[%clk 0:00:00]}  Nxb3 {[%clk 0:00:00]} 35. Rxh5 {[%clk 0:00:00]}  Rh7 {[%clk 0:00:00]} 36. Rxh7 {[%clk 0:00:00]}  Qxh7 {[%clk 0:00:00]} 37. Qxb3 {[%clk 0:00:00]}  Qe4 {[%clk 0:00:00]} 38. Qg3+ {[%clk 0:00:00]}  Kf8 {[%clk 0:00:00]} 39. Qc7 {[%clk 0:00:00]}  Qxd5 {[%clk 0:00:00]} 40. Qf7# {[%clk 0:00:00]} 1-0


[Site "https://www.chess.com"]